{"text_format":"1","workbook":"xlsx","n_sheets":2,"sheets":["Feuil1","Référentiel"],"not_rendered":{"charts":0,"images":6,"macros":1,"external_links":0,"defined_names":108,"comments":0,"pivot_tables":0},"unopened":[],"bounds":{"document_bytes":16777216,"sheet_cells":100000,"rows_first":2000,"rows_last":500,"rows_between":2000,"halvings":0,"cell_chars":16384,"cell_head_chars":4096},"cells_cut":0,"cells_raw":0,"read":"whole","date_system":"1900"}

{"sheet":"Feuil1","index":0,"n_rows":38,"n_cols":23,"rows_kept":38,"cut":false,"hidden":false,"merged":[]}
[null,null,"Fiche évaluation DNB",null,null,null,"APSA:","Basket"]
[null,null,"Classe/Groupe",null,null,null,"Professeur:",null,null,null,null,null,null,null,null,null,null,null,null,null,null,null,"C:\\Users\\GERARD HOLDER EPS\\Documents\\fiches compatibles pack EPS\\Nouveau dossier\\macros2"]
[null,null,null,null,null,null,null,null,null,null,null,null,null,null,null,null,null,null,null,null,null,null,"C:\\Users\\GERARD HOLDER EPS\\Documents\\fiches compatibles pack EPS\\Nouveau dossier\\macros2\\Fiche évaluation DNB Basket  .pdf"]
[]
[null,"Nom- Prénom","Sexe","Classe","Note","Efficacité collective dans le gain du match /6 pts","Gain des matchs /2 pts","Efficacité individuelle dans l’organisation collective/8 pts","Efficacité dans le rôle d'observateur et d'arbitre/4 pts",null,null,null,"Jeu direct",null,null,0,null,"Joueur intermittent et peu collectif",null,null,null,"Rôles insuffisamment assurés"]
[1,null,null,null,{"$f":"IF(OR(F6=\"\"),\"\",F6+G6+H6+I6)","v":""},null,null,null,null,null,null,null,0,null,null,0.5,null,0,null,null,null,0]
[2,null,null,null,{"$f":"IF(OR(F7=\"\"),\"\",F7+G7+H7+I7)","v":""},null,null,null,null,null,null,null,0.5,null,null,1,null,0.5,null,null,null,0.5]
[3,null,null,null,"",null,null,null,null,null,null,null,1,null,null,1.5,null,1,null,null,null,1]
[4,null,null,null,"",null,null,null,null,null,null,null,1.5,null,null,2,null,1.5,null,null,null,1.5]
[5,null,null,null,"",null,null,null,null,null,null,null,2,null,null,null,null,2,null,null,null,"Rôles assumés"]
[6,null,null,null,"",null,null,null,null,null,null,null,2.5,null,null,null,null,2.5,null,null,null,2]
[7,null,null,null,"",null,null,null,null,null,null,null,"Jeu simple, en contre attaque ou placés, progression",null,null,null,null,3,null,null,null,2.5]
[8,null,null,null,"",null,null,null,null,null,null,null,3,null,null,null,null,3.5,null,null,null,3]
[9,null,null,null,"",null,null,null,null,null,null,null,3.5,null,null,null,null,"Joueur permettant le jeu rapide ou placé",null,null,null,"Rôles assurés"]
[10,null,null,null,"",null,null,null,null,null,null,null,4,null,null,null,null,4,null,null,null,3.5]
[11,null,null,null,"",null,null,null,null,null,null,null,4.5,null,null,null,null,4.5,null,null,null,4]
[12,null,null,null,"",null,null,null,null,null,null,null,"Je varié, en contre attaque ou placé attaque",null,null,null,null,5]
[13,null,null,null,"",null,null,null,null,null,null,null,5,null,null,null,null,5.5]
[14,null,null,null,"",null,null,null,null,null,null,null,5.5,null,null,null,null,6]
[15,null,null,null,"",null,null,null,null,null,null,null,6,null,null,null,null,"Joueur assurant le jeu rapide ou placé par des actions variées"]
[16,null,null,null,"",null,null,null,null,null,null,null,null,null,null,null,null,6.5]
[17,null,null,null,"",null,null,null,null,null,null,null,null,null,null,null,null,7]
[18,null,null,null,"",null,null,null,null,null,null,null,null,null,null,null,null,7.5]
[19,null,null,null,"",null,null,null,null,null,null,null,null,null,null,null,null,8]
[20,null,null,null,""]
[21,null,null,null,""]
[22,null,null,null,""]
[23,null,null,null,""]
[24,null,null,null,""]
[25,null,null,null,""]
[26,null,null,null,""]
[27,null,null,null,""]
[28,null,null,null,""]
[29,null,null,null,""]
[30,null,null,null,""]
[null,null,null,"Moyenne générale",{"$f":"IF(E6=\"\",\"\",AVERAGE($E$6:$E$35))","v":""}]
[null,null,null,"Moyenne filles",{"$f":"IF(E6=\"\",\"\",IF(C6=\"\",\"\",AVERAGEIF($C$6:$C$35,\"F\",$E$6:$E$35)))","v":""}]
[null,null,null,"Moyenne garçons",{"$f":"IF(E12=\"\",\"\",IF(C6=\"\",\"\",AVERAGEIF($C$6:$C$35,\"M\",$E$6:$E$35)))","v":""}]

{"sheet":"Référentiel","index":1,"n_rows":0,"n_cols":0,"rows_kept":0,"cut":false,"hidden":false,"merged":[]}